fUSD/lending_fUSD_20250604
["ID","MTS","AMOUNT","RATE_DAILY","PERIOD"]
[364094905,1748995848906,-460.0,0.00035616,7]
[364094906,1748995848916,-460.0,0.00035616,7]
[364094907,1748995848926,-460.0,0.00035616,7]
[364094908,1748995848935,-694.86,0.00035616,7]
[364094909,1748995848947,-460.0,0.00035616,7]
[364094910,1748995848957,-460.0,0.00035616,7]
[364094911,1748995848966,-460.0,0.00035616,7]
[364094912,1748995848975,-2093.95,0.00035616,7]
[364094913,1748995848985,-460.0,0.00035616,7]
[364094914,1748995848994,-1277.43,0.00035616,7]
[364094915,1748995849004,-460.0,0.00035616,7]
[364094916,1748995849014,-460.0,0.00035616,7]
[364094917,1748995849023,-460.0,0.00035616,7]
[364094918,1748995849033,-910.67,0.00035616,7]
[364094919,1748995849047,-642.56,0.00035616,7]
[364094920,1748995849056,-460.0,0.00035616,7]
[364094921,1748995849066,-460.0,0.00035616,7]
[364094922,1748995849076,-761.61,0.00035616,7]
[364094923,1748995849087,-1000.0,0.00035616,7]
[364094924,1748995849097,-460.0,0.00035616,7]
[364094925,1748995849106,-460.0,0.00035616,7]
[364094926,1748995849116,-460.0,0.00035616,7]
[364094927,1748995849126,-1456.77,0.00035616,7]
[364094928,1748995849136,-460.0,0.00035616,7]
[364094929,1748995849145,-460.0,0.00035616,7]
[364094930,1748995849155,-460.0,0.00035616,7]
[364094931,1748995849165,-460.0,0.00035616,7]
[364094932,1748995849175,-460.0,0.00035616,7]
[364094933,1748995849187,-460.0,0.00035616,7]
[364094934,1748995849202,-460.0,0.00035616,7]
[364094935,1748995849212,-787.92,0.00035616,7]
[364094936,1748995849223,-536.04,0.00035616,7]
[364094937,1748995849232,-1662.81,0.00035616,7]
[364094938,1748995849242,-460.0,0.00035616,7]
[364094939,1748995849252,-2432.49,0.00035616,7]
[364094940,1748995849263,-381.47454058,0.00035616,7]
[364094941,1748995849273,-518.15,0.00035616,7]
[364094942,1748995849283,-460.0,0.00035616,7]
[364094943,1748995849292,-460.0,0.00035616,7]
[364094944,1748995849302,-460.0,0.00035616,7]
[364094945,1748995849311,-460.0,0.00035616,7]
[364094946,1748995849321,-460.0,0.00035616,7]
[364094947,1748995849330,-460.0,0.00035616,7]
[364094948,1748995849340,-516.14,0.00035616,7]
[364094949,1748995849350,-460.0,0.00035616,7]
[364094950,1748995849360,-460.0,0.00035616,7]
[364094951,1748995849369,-460.0,0.00035616,7]
[364094952,1748995849378,-460.0,0.00035616,7]
[364094953,1748995849388,-1930.21,0.00035616,7]
[364094954,1748995849399,-834.22,0.00035616,7]
[364094955,1748995849409,-460.0,0.00035616,7]
[364094956,1748995849421,-915.95,0.00035616,7]
[364094957,1748995849430,-1619.56,0.00035616,7]
[364094958,1748995849439,-815.64,0.00035616,7]
[364094959,1748995849452,-460.0,0.00035616,7]
[364094960,1748995849461,-460.0,0.00035616,7]
[364094961,1748995849471,-460.0,0.00035616,7]
[364094962,1748995849481,-1204.26,0.00035616,7]
[364094963,1748995849490,-969.15,0.00035616,7]
[364094964,1748995849500,-353.08640694,0.00035616,7]
[364094965,1748995849510,-300.0,0.00035616,7]
[364094966,1748995849521,-460.0,0.00035616,7]
[364094967,1748995849530,-460.0,0.00035616,7]
[364094968,1748995849540,-1505.27,0.00035616,7]
[364094969,1748995849549,-460.0,0.00035616,7]
[364094970,1748995849559,-460.0,0.00035616,7]
[364094971,1748995849568,-460.0,0.00035616,7]
[364094972,1748995849578,-1107.12,0.00035616,7]
[364094973,1748995849587,-383.08613347,0.00035616,7]
[364094974,1748995849598,-2928.65,0.00035616,7]
[364094975,1748995849608,-2292.66,0.00035616,7]
[364094976,1748995849618,-460.0,0.00035616,7]
[364094977,1748995849627,-1283.3,0.00035616,7]
[364094978,1748995849638,-2154.49,0.00035616,7]
[364094979,1748995849650,-460.0,0.00035616,7]
[364094980,1748995849660,-1495.84,0.00035616,7]
[364094981,1748995849671,-2035.54,0.00035616,7]
[364094982,1748995849681,-426.23258354,0.00035616,7]
[364094983,1748995849691,-616.97,0.00035616,7]
[364094984,1748995849702,-460.0,0.00035616,7]
[364094985,1748995849712,-460.0,0.00035616,7]
[364094986,1748995849721,-1344.25,0.00035616,7]
[364094987,1748995849731,-460.0,0.00035616,7]
[364094988,1748995849740,-460.0,0.00035616,7]
[364094989,1748995849749,-460.0,0.00035616,7]
[364094990,1748995849759,-460.0,0.00035616,7]
[364094991,1748995849769,-1067.42,0.00035616,7]
[364094992,1748995849778,-460.0,0.00035616,7]
[364094993,1748995849788,-460.0,0.00035616,7]
[364094994,1748995849797,-460.0,0.00035616,7]
[364094995,1748995849807,-465.12,0.00035616,7]
[364094996,1748995849816,-460.0,0.00035616,7]
[364094997,1748995849825,-3768.26,0.00035616,7]
[364094998,1748995849835,-460.0,0.00035616,7]
[364094999,1748995849844,-1554.15,0.00035616,7]
[364095000,1748995849854,-1554.15,0.00035616,7]
[364095001,1748995849863,-421.70829783,0.00035616,7]
[364095002,1748995849873,-1554.15,0.00035616,7]
[364095003,1748995849884,-1492.78,0.00035616,7]
[364095004,1748995849890,-1554.15,0.00035616,7]
[364095005,1748995849897,-1554.15,0.00035616,7]
[364095006,1748995849904,-460.0,0.00035616,7]
[364095007,1748995849911,-1191.65,0.00035616,7]
[364095008,1748995849918,-460.0,0.00035616,7]
[364095009,1748995849925,-797.88,0.00035616,7]
[364095010,1748995849933,-460.0,0.00035616,7]
[364095011,1748995849942,-653.75,0.00035616,7]
[364095012,1748995849950,-1673.58,0.00035616,7]
[364095013,1748995849958,-460.0,0.00035616,7]
[364095014,1748995849967,-477.15,0.00035616,7]
[364095015,1748995849977,-761.54,0.00035616,7]
[364095016,1748995849987,-460.0,0.00035616,7]
[364095017,1748995849997,-460.0,0.00035616,7]
[364095018,1748995850006,-460.0,0.00035616,7]
[364095019,1748995850016,-460.0,0.00035616,7]
[364095020,1748995850026,-460.0,0.00035616,7]
[364095021,1748995850036,-874.27,0.00035616,7]
[364095022,1748995850050,-1651.58,0.00035616,7]
[364095023,1748995850059,-1698.47,0.00035616,7]
[364095024,1748995850068,-460.0,0.00035616,7]
[364095025,1748995850078,-7536.3,0.00035616,7]
[364095026,1748995850089,-300.0,0.00035616,7]
[364095027,1748995850098,-2058.25,0.00035616,7]
[364095028,1748995850107,-460.0,0.00035616,7]
[364095029,1748995850117,-460.0,0.00035616,7]
[364095030,1748995850127,-460.0,0.00035616,7]
[364095031,1748995850137,-460.0,0.00035616,7]
[364095032,1748995850146,-973.86,0.00035616,7]
[364095033,1748995850155,-460.0,0.00035616,7]
[364095034,1748995850165,-460.0,0.00035616,7]
[364095035,1748995850174,-568.27,0.00035616,7]
[364095036,1748995850184,-1370.82,0.00035616,7]
[364095037,1748995850196,-540.08192772,0.00035616,7]
[364095038,1748995850206,-10485.09,0.00035616,7]
[364095039,1748995850215,-460.0,0.00035616,7]
[364095040,1748995850224,-460.0,0.00035616,7]
[364095041,1748995850236,-492.99,0.00035616,7]
[364095042,1748995850245,-460.0,0.00035616,7]
[364095043,1748995850255,-791.14,0.00035616,7]
[364095044,1748995850265,-5181.17,0.00035616,7]
[364095045,1748995850275,-540.46,0.00035616,7]
[364095046,1748995850284,-1440.76,0.00035616,7]
[364095047,1748995850295,-675.82,0.00035616,7]
[364095048,1748995850305,-5522.43,0.00035616,7]
[364095049,1748995850315,-460.0,0.00035616,7]
[364095050,1748995850324,-940.53,0.00035616,7]
[364095051,1748995850334,-460.0,0.00035616,7]
[364095052,1748995850343,-940.53,0.00035616,7]
[364095053,1748995850353,-460.0,0.00035616,7]
[364095054,1748995850362,-2638.8,0.00035616,7]
[364095055,1748995850372,-940.53,0.00035616,7]
[364095056,1748995850382,-940.53,0.00035616,7]
[364095057,1748995850392,-460.0,0.00035616,7]
[364095058,1748995850402,-940.53,0.00035616,7]
[364095059,1748995850412,-470.46,0.00035616,7]
[364095060,1748995850422,-460.0,0.00035616,7]
[364095061,1748995850432,-460.0,0.00035616,7]
[364095062,1748995850444,-17265.67,0.00035616,7]
[364095063,1748995850454,-460.0,0.00035616,7]
[364095064,1748995850463,-499.57,0.00035616,7]
[364095065,1748995850473,-481.0,0.00035616,7]
[364095066,1748995850483,-536.14930096,0.00035616,7]
[364095067,1748995850493,-1224.14,0.00035616,7]
[364095068,1748995850502,-460.0,0.00035616,7]
[364095069,1748995850512,-460.0,0.00035616,7]
[364095070,1748995850521,-460.0,0.00035616,7]
[364095071,1748995850533,-460.0,0.00035616,7]
[364095072,1748995850543,-460.0,0.00035616,7]
[364095073,1748995850553,-1827.95,0.00035616,7]
[364095074,1748995850563,-460.0,0.00035616,7]
[364095075,1748995850572,-460.0,0.00035616,7]
[364095076,1748995850582,-460.0,0.00035616,7]
[364095077,1748995850592,-785.34,0.00035616,7]
[364095078,1748995850602,-1549.5,0.00035616,7]
[364095079,1748995850613,-460.0,0.00035616,7]
[364095080,1748995850622,-460.0,0.00035616,7]
[364095081,1748995850631,-3135.25,0.00035616,7]
[364095082,1748995850641,-4324.48,0.00035616,7]
[364095083,1748995850650,-460.0,0.00035616,7]
[364095084,1748995850660,-472.8,0.00035616,7]
[364095085,1748995850669,-460.0,0.00035616,7]
[364095086,1748995850679,-460.0,0.00035616,7]
[364095087,1748995850689,-896.38,0.00035616,7]
[364095088,1748995850701,-238353.77,0.00035616,7]
[364095089,1748995850711,-698.68,0.00035616,7]
[364095090,1748995850721,-460.0,0.00035616,7]
[364095091,1748995850730,-460.0,0.00035616,7]
[364095092,1748995850739,-1503.54,0.00035616,7]
[364095093,1748995850748,-892.73,0.00035616,7]
[364095094,1748995850758,-1677.78,0.00035616,7]
[364095095,1748995850767,-469.72,0.00035616,7]
[364095096,1748995850777,-460.0,0.00035616,7]
[364095097,1748995850786,-2000.0,0.00035616,7]
[364095098,1748995850795,-460.0,0.00035616,7]
[364095099,1748995850928,-460.0,0.00035616,7]
[364095100,1748995850939,-2644.73,0.00035616,7]
[364095101,1748995850952,-460.0,0.00035616,7]
[364095102,1748995850961,-2076.7,0.00035616,7]
[364095103,1748995850970,-817.32,0.00035616,7]
[364095104,1748995850980,-460.0,0.00035616,7]
[364095105,1748995850990,-1454.03,0.00035616,7]
[364095106,1748995851000,-1871.48,0.00035616,7]
[364095107,1748995851011,-604.53,0.00035616,7]
[364095108,1748995851021,-429.66596625,0.00035616,7]
[364095109,1748995851030,-475.9,0.00035616,7]
[364095110,1748995851041,-793.4,0.00035616,7]
[364095111,1748995851053,-460.0,0.00035616,7]
[364095112,1748995851063,-430.99143339,0.00035616,7]
[364095113,1748995851073,-460.0,0.00035616,7]
[364095114,1748995851083,-479.74,0.00035616,7]
[364095115,1748995851094,-460.0,0.00035616,7]
[364095116,1748995851104,-14235.34,0.00035616,7]
[364095117,1748995851114,-6479.37,0.00035616,7]
[364095118,1748995851126,-460.0,0.00035616,7]
[364095119,1748995851136,-460.0,0.00035616,7]
[364095120,1748995851146,-460.0,0.00035616,7]
[364095121,1748995851157,-2059.91,0.00035616,7]
[364095122,1748995851166,-460.0,0.00035616,7]
[364095123,1748995851176,-1295.21,0.00035616,7]
[364095124,1748995851186,-460.0,0.00035616,7]
[364095125,1748995851198,-460.0,0.00035616,7]
[364095126,1748995851208,-9434.81,0.00035616,7]
[364095127,1748995851218,-460.0,0.00035616,7]
[364095128,1748995851228,-885.76,0.00035616,7]
[364095129,1748995851238,-460.0,0.00035616,7]
[364095130,1748995851248,-460.0,0.00035616,7]
[364095131,1748995851258,-788.24,0.00035616,7]
[364095132,1748995851268,-523.31,0.00035616,7]
[364095133,1748995851278,-460.0,0.00035616,7]
[364095134,1748995851287,-1764.66,0.00035616,7]
[364095135,1748995851297,-460.0,0.00035616,7]
[364095136,1748995851307,-460.0,0.00035616,7]
[364095137,1748995851317,-460.0,0.00035616,7]
[364095138,1748995851326,-614.21,0.00035616,7]
[364095139,1748995851336,-989.88,0.00035616,7]
[364095140,1748995851345,-428.787576,0.00035616,7]
[364095141,1748995851355,-1000.0,0.00035616,30]
[364095142,1748995851365,-460.0,0.00035616,7]
[364095143,1748995851375,-2666.89,0.00035616,7]
[364095144,1748995851385,-460.0,0.00035616,7]
[364095145,1748995851394,-3052.91,0.00035616,7]
[364095146,1748995851404,-623.19,0.00035616,7]
[364095147,1748995851413,-698.42,0.00035616,7]
[364095148,1748995851422,-3039.28,0.00035616,7]
[364095149,1748995851432,-500.0,0.00035616,7]
[364095150,1748995851444,-460.0,0.00035616,7]
[364095151,1748995851454,-3088.67,0.00035616,7]
[364095152,1748995851463,-460.0,0.00035616,7]
[364095153,1748995851473,-460.0,0.00035616,7]
[364095154,1748995851483,-460.0,0.00035616,7]
[364095155,1748995851492,-460.0,0.00035616,7]
[364095156,1748995851502,-460.0,0.00035616,7]
[364095157,1748995851512,-810.53,0.00035616,7]
[364095158,1748995851521,-1177.0,0.00035616,7]
[364095159,1748995851531,-161.98702285,0.00035616,7]
[364095160,1748995851541,-982.03,0.00035616,7]
[364095161,1748995851550,-460.0,0.00035616,7]
[364095162,1748995851560,-2172.17,0.00035616,7]
[364095163,1748995851569,-2065.43,0.00035616,7]
[364095164,1748995851579,-460.0,0.00035616,7]
[364095165,1748995851588,-8931.32,0.00035616,7]
[364095166,1748995851598,-460.0,0.00035616,7]
[364095167,1748995851608,-3663.69,0.00035616,7]
[364095168,1748995851620,-460.0,0.00035616,7]
[364095169,1748995851630,-460.0,0.00035616,7]
[364095170,1748995851639,-460.0,0.00035616,7]
[364095171,1748995851649,-460.0,0.00035616,7]
[364095172,1748995851658,-460.0,0.00035616,7]
[364095173,1748995851667,-460.0,0.00035616,7]
[364095174,1748995851677,-460.0,0.00035616,7]
[364095175,1748995851687,-853.43,0.00035616,7]
[364095176,1748995851700,-683.89,0.00035616,7]
[364095177,1748995851709,-460.0,0.00035616,7]
[364095178,1748995851720,-460.0,0.00035616,7]
[364095179,1748995851729,-1173.96,0.00035616,7]
[364095180,1748995851739,-2118.95,0.00035616,7]
[364095181,1748995851749,-460.0,0.00035616,7]
[364095182,1748995851759,-3152.41,0.00035616,7]
[364095183,1748995851768,-460.0,0.00035616,7]
[364095184,1748995851778,-2083.82,0.00035616,7]
[364095185,1748995851788,-1124.09,0.00035616,7]
[364095186,1748995851797,-11927.51,0.00035616,7]
[364095187,1748995851807,-486.04,0.00035616,7]
[364095188,1748995851817,-460.0,0.00035616,7]
[364095189,1748995851827,-460.0,0.00035616,7]
[364095190,1748995851836,-2015.88,0.00035616,7]
[364095191,1748995851846,-407.07220079,0.00035616,7]
[364095192,1748995851855,-499.28,0.00035616,7]
[364095193,1748995851865,-744.65,0.00035616,7]
[364095194,1748995851874,-460.0,0.00035616,7]
[364095195,1748995851884,-460.0,0.00035616,7]
[364095196,1748995851894,-460.0,0.00035616,7]
[364095197,1748995851903,-460.0,0.00035616,7]
[364095198,1748995851913,-631.56,0.00035616,7]
[364095199,1748995851923,-460.0,0.00035616,7]
[364095200,1748995851932,-160.083307,0.00035616,7]
[364095201,1748995851943,-1293.8,0.00035616,7]
[364095202,1748995851953,-1854.92,0.00035616,7]
[364095203,1748995851963,-2883.85,0.00035616,7]
[364095204,1748995851973,-460.0,0.00035616,7]
[364095205,1748995851984,-555.57,0.00035616,7]
[364095206,1748995851994,-3527.73,0.00035616,7]
[364095207,1748995852005,-420.0,0.00035616,7]
[364095208,1748995852015,-460.0,0.00035616,7]
[364095209,1748995852024,-460.0,0.00035616,7]
[364095210,1748995852034,-460.0,0.00035616,7]
[364095211,1748995852046,-460.0,0.00035616,7]
[364095212,1748995852057,-460.0,0.00035616,7]
[364095213,1748995852067,-6289.94,0.00035616,7]
[364095214,1748995852076,-460.0,0.00035616,7]
[364095215,1748995852087,-460.0,0.00035616,7]
[364095216,1748995852096,-1102.76,0.00035616,7]
[364095217,1748995852106,-1206.63,0.00035616,7]
[364095218,1748995852116,-398.34031765,0.00035616,7]
[364095219,1748995852125,-667.37,0.00035616,7]
[364095220,1748995852135,-460.0,0.00035616,7]
[364095221,1748995852145,-629.32,0.00035616,7]
[364095222,1748995852156,-466.08,0.00035616,7]
[364095223,1748995852166,-460.0,0.00035616,7]
[364095224,1748995852176,-460.0,0.00035616,7]
[364095225,1748995852185,-460.0,0.00035616,7]
[364095226,1748995852196,-4707.56,0.00035616,7]
[364095227,1748995852206,-3131.27,0.00035616,7]
[364095228,1748995852215,-1034.01,0.00035616,7]
[364095229,1748995852225,-3749.86,0.00035616,7]
[364095230,1748995852234,-2675.72,0.00035616,7]
[364095231,1748995852245,-569.16,0.00035616,7]
[364095232,1748995852254,-961.25,0.00035616,7]
[364095233,1748995852263,-460.0,0.00035616,7]
[364095234,1748995852273,-460.0,0.00035616,7]
[364095235,1748995852282,-17501.84,0.00035616,7]
[364095236,1748995852292,-500.0,0.00035616,7]
[364095237,1748995852302,-500.0,0.00035616,7]
[364095238,1748995852311,-6548.56,0.00035616,7]
[364095239,1748995852321,-460.0,0.00035616,7]
[364095240,1748995852330,-460.0,0.00035616,7]
[364095241,1748995852340,-804.52,0.00035616,7]
[364095242,1748995852349,-1444.84,0.00035616,60]
[364095243,1748995852359,-460.0,0.00035616,7]
[364095244,1748995852369,-460.0,0.00035616,7]
[364095245,1748995852379,-9567.46,0.00035616,7]
[364095246,1748995852389,-3799.52,0.00035616,7]
[364095247,1748995852399,-4015.22,0.00035616,7]
[364095248,1748995852408,-460.0,0.00035616,7]
[364095249,1748995852418,-460.0,0.00035616,7]
[364095250,1748995852427,-460.0,0.00035616,7]
[364095251,1748995852437,-719.23,0.00035616,7]
[364095252,1748995852449,-3766.12,0.00035616,7]
[364095253,1748995852458,-347.85982184,0.00035616,7]
[364095254,1748995852468,-460.0,0.00035616,7]
[364095255,1748995852478,-422.29684088,0.00035616,7]
[364095256,1748995852487,-840.58,0.00035616,7]
[364095257,1748995852497,-460.0,0.00035616,7]
[364095258,1748995852507,-13142.82,0.00035616,7]
[364095259,1748995852516,-460.0,0.00035616,7]
[364095260,1748995852527,-1080.55,0.00035616,7]
[364095261,1748995852537,-950.75,0.00035616,7]
[364095262,1748995852546,-460.0,0.00035616,7]
[364095263,1748995852556,-460.0,0.00035616,7]
[364095264,1748995852566,-460.0,0.00035616,7]
[364095265,1748995852575,-5420.79,0.00035616,7]
[364095266,1748995852585,-460.0,0.00035616,7]
[364095267,1748995852595,-460.0,0.00035616,7]
[364095268,1748995852604,-1122.52,0.00035616,7]
[364095269,1748995852614,-4763.89,0.00035616,7]
[364095270,1748995852623,-460.55786256,0.00035616,7]
[364095271,1748995852633,-597.67,0.00035616,7]
[364095272,1748995852642,-460.0,0.00035616,7]
[364095273,1748995852652,-460.0,0.00035616,7]
[364095274,1748995852661,-2910.59,0.00035616,7]
[364095275,1748995852671,-1442.64,0.00035616,7]
[364095276,1748995852681,-460.0,0.00035616,7]
[364095277,1748995852690,-1046.5,0.00035616,7]
[364095278,1748995852701,-460.0,0.00035616,7]
[364095279,1748995852711,-460.0,0.00035616,7]
[364095280,1748995852720,-460.0,0.00035616,7]
[364095281,1748995852729,-189.37193706,0.00035616,7]
[364095282,1748995852738,-560.01,0.00035616,7]
[364095283,1748995852748,-460.0,0.00035616,7]
[364095284,1748995852757,-460.0,0.00035616,7]
[364095285,1748995852767,-460.0,0.00035616,7]
[364095286,1748995852776,-460.0,0.00035616,7]
[364095287,1748995852785,-460.0,0.00035616,7]
[364095288,1748995852794,-3074.76,0.00035616,7]
[364095289,1748995852804,-460.0,0.00035616,7]
[364095290,1748995852813,-460.0,0.00035616,7]
[364095291,1748995852822,-460.0,0.00035616,7]
[364095292,1748995852832,-2465.8,0.00035616,7]
[364095293,1748995852841,-1731.77,0.00035616,7]
[364095294,1748995852851,-1863.85,0.00035616,7]
[364095295,1748995852860,-1152.11,0.00035616,7]
[364095296,1748995852870,-1230.34,0.00035616,7]
[364095297,1748995852879,-460.0,0.00035616,7]
[364095298,1748995852889,-761.41,0.00035616,7]
[364095299,1748995852898,-460.0,0.00035616,7]
[364095300,1748995852907,-12412.86,0.00035616,7]
[364095301,1748995852916,-460.0,0.00035616,7]
[364095302,1748995852925,-460.0,0.00035616,7]
[364095303,1748995852936,-767.08,0.00035616,7]
[364095304,1748995852948,-460.0,0.00035616,7]
[364095305,1748995852957,-924.68,0.00035616,7]
[364095306,1748995852967,-579.08,0.00035616,7]
[364095307,1748995852977,-17075.03,0.00035616,7]
[364095308,1748995852987,-195.568803,0.00035616,7]
[364095309,1748995852996,-424.18091793,0.00035616,7]
[364095310,1748995853005,-849.28,0.00035616,7]
[364095311,1748995853014,-4058.92,0.00035616,7]
[364095312,1748995853024,-1398.47,0.00035616,7]
[364095313,1748995853033,-2679.73,0.00035616,7]
[364095314,1748995853045,-460.0,0.00035616,7]
[364095315,1748995853369,-500.0,0.00035616,7]
[364095316,1748995853383,-500.0,0.00035616,7]
[364095317,1748995853392,-500.0,0.00035616,7]
[364095318,1748995853401,-500.0,0.00035616,7]
[364095319,1748995853411,-460.0,0.00035616,7]
[364095320,1748995853420,-500.0,0.00035616,7]
[364095321,1748995853430,-2307.0,0.00035616,7]
[364095322,1748995853439,-500.0,0.00035616,7]
[364095323,1748995853453,-460.0,0.00035616,7]
[364095324,1748995853463,-431.51226011,0.00035616,7]
[364095325,1748995853472,-460.0,0.00035616,7]
[364095326,1748995853482,-1000.92,0.00035616,7]
[364095327,1748995853492,-436.45682191,0.00035616,2]
[364095328,1748995853502,-500.00000001,0.00035616,7]
[364095329,1748995853511,-4381.06,0.00035616,7]
[364095330,1748995853520,-1186.64,0.00035616,7]
[364095331,1748995853530,-460.0,0.00035616,7]
[364095332,1748995853540,-5046.32,0.00035616,7]
[364095333,1748995853549,-4942.78,0.00035616,7]
[364095334,1748995853558,-460.0,0.00035616,7]
[364095335,1748995853567,-460.0,0.00035616,7]
[364095336,1748995853577,-10206.21,0.00035616,7]
[364095337,1748995853587,-460.0,0.00035616,7]
[364095338,1748995853596,-460.0,0.00035616,7]
[364095339,1748995853605,-364.79225761,0.00035616,7]
[364095340,1748995853615,-910.9,0.00035616,7]
[364095341,1748995853625,-1510.68,0.00035616,7]
[364095342,1748995853634,-460.0,0.00035616,7]
[364095343,1748995853644,-319.27407716,0.00035616,7]
[364095344,1748995853653,-573.13,0.00035616,7]
[364095345,1748995853662,-558.38,0.00035616,7]
[364095346,1748995853672,-183.89487434,0.00035616,7]
[364095347,1748995853681,-460.0,0.00035616,7]
[364095348,1748995853691,-460.0,0.00035616,7]
[364095349,1748995853707,-5347.28,0.00035616,7]
[364095350,1748995853716,-3447.82,0.00035616,7]
[364095351,1748995853726,-460.0,0.00035616,7]
[364095352,1748995853736,-460.0,0.00035616,7]
[364095353,1748995853746,-26368.27,0.00035616,7]
[364095354,1748995853756,-460.0,0.00035616,7]
[364095355,1748995853768,-460.0,0.00035616,7]
[364095356,1748995853779,-460.0,0.00035616,7]
[364095357,1748995853789,-460.0,0.00035616,7]
[364095358,1748995853799,-560.0,0.00035616,7]
[364095359,1748995853809,-528.64442179,0.00035616,7]
[364095360,1748995853818,-460.0,0.00035616,7]
[364095361,1748995853828,-627.31,0.00035616,7]
[364095362,1748995853839,-205.75473611,0.00035616,5]
[364095363,1748995853848,-420.0025482,0.00035616,7]
[364095364,1748995853858,-420.0,0.00035616,7]
[364095365,1748995853869,-2530.52,0.00035616,7]
[364095366,1748995853879,-781.63,0.00035616,7]
[364095367,1748995853889,-460.0,0.00035616,7]
[364095368,1748995853899,-4157.59,0.00035616,7]
[364095369,1748995853909,-11830.5,0.00035616,7]
[364095370,1748995853919,-1474.65,0.00035616,7]
[364095371,1748995853928,-460.0,0.00035616,7]
[364095372,1748995853937,-460.0,0.00035616,7]
[364095373,1748995853945,-460.0,0.00035616,7]
[364095374,1748995853963,-13597.78,0.00035616,7]
[364095375,1748995853971,-13597.78,0.00035616,7]
[364095376,1748995853979,-460.0,0.00035616,7]
[364095377,1748995853988,-460.0,0.00035616,7]
[364095378,1748995853999,-13597.78,0.00035616,7]
[364095379,1748995854010,-460.0,0.00035616,7]
[364095380,1748995854020,-563.64,0.00035616,7]
[364095381,1748995854030,-13597.78,0.00035616,7]
[364095382,1748995854042,-13597.78,0.00035616,7]
[364095383,1748995854052,-13597.78,0.00035616,7]
[364095384,1748995854063,-13597.78,0.00035616,7]
[364095385,1748995854073,-13597.78,0.00035616,7]
[364095386,1748995854084,-13597.78,0.00035616,7]
[364095387,1748995854095,-1514.44,0.00035616,7]
[364095388,1748995854105,-13597.78,0.00035616,7]
[364095389,1748995854115,-460.0,0.00035616,7]
[364095390,1748995854128,-721.29,0.00035616,7]
[364095391,1748995854139,-415.82411795,0.00035616,7]
[364095392,1748995854148,-460.0,0.00035616,7]
[364095393,1748995854158,-1148.53,0.00035616,7]
[364095394,1748995854168,-421.76896976,0.00035616,7]
[364095395,1748995854178,-460.0,0.00035616,7]
[364095396,1748995854188,-460.0,0.00035616,7]
[364095397,1748995854202,-17384.97,0.00035616,7]
[364095398,1748995854212,-460.0,0.00035616,7]
[364095399,1748995854222,-460.0,0.00035616,7]
[364095400,1748995854231,-460.0,0.00035616,7]
[364095401,1748995854241,-4792.54,0.00035616,7]
[364095402,1748995854250,-1006.81,0.00035616,7]
[364095403,1748995854260,-620.21,0.00035616,7]
[364095404,1748995854270,-596.67,0.00035616,7]